bitfinex/quotes_BTCUSD_20241001
["timestamp","ask_amount","ask_price","bid_price","bid_amount"]
[1727808300009,0.009642,62146.0,62145.0,0.3489127]
[1727808300227,0.014642,62146.0,62145.0,0.3489127]
[1727808300472,0.009642,62146.0,62145.0,0.3489127]
[1727808300720,0.009642,62146.0,62145.0,0.3719127]
[1727808300974,0.009642,62146.0,62145.0,0.49152769]
[1727808300975,0.001642,62146.0,62145.0,0.49152769]
[1727808301247,0.24221167,62157.0,62145.0,0.49152769]
[1727808301248,0.24221167,62156.0,62153.0,0.1197]
[1727808301490,0.24221167,62156.0,62155.0,0.58542954]
[1727808301727,0.24221167,62156.0,62155.0,0.340088]
[1727808302256,0.24221167,62156.0,62150.0,0.321798]
[1727808302257,0.39866947,62156.0,62150.0,0.0819]
[1727808302507,0.1564578,62155.0,62150.0,0.0819]
[1727808302780,0.1564578,62155.0,62151.0,0.160897]
[1727808302998,0.160891,62154.0,62150.0,0.0819]
[1727808303223,0.1564578,62154.0,62150.0,0.0819]
[1727808303447,0.1564578,62154.0,62151.0,0.160897]
[1727808303659,0.1564578,62154.0,62150.0,0.0819]
[1727808303660,0.3425632,62154.0,62150.0,0.0819]
[1727808303891,0.3425632,62154.0,62150.0,0.2428]
[1727808304117,0.160903,62150.0,62145.0,0.1766117]
[1727808304331,0.160898,62151.0,62150.0,0.004]
[1727808304537,0.160911,62146.0,62145.0,0.0156997]
[1727808304744,0.160908,62147.0,62145.0,0.0156997]
[1727808304955,0.160911,62146.0,62145.0,0.0156997]
[1727808305460,0.55793847,62146.0,62145.0,0.0156997]
[1727808305673,0.3173688,62146.0,62145.0,0.0156997]
[1727808305896,0.3173688,62146.0,62145.0,0.0166997]
[1727808306546,0.38941737,62146.0,62145.0,0.0166997]
[1727808307428,0.07204857,62147.0,62146.0,0.238811]
[1727808307659,0.24138,62149.0,62148.0,0.160906]
[1727808308771,0.23757453,62149.0,62148.0,0.160906]
[1727808309017,0.23757453,62149.0,62148.0,0.18543431]
[1727808309244,0.23757453,62149.0,62148.0,0.355406]
[1727808309466,0.23757453,62149.0,62148.0,0.356406]
[1727808309467,0.24457453,62149.0,62148.0,0.356406]
[1727808309939,0.24457453,62149.0,62148.0,0.6178638]
[1727808310166,0.14257453,62149.0,62148.0,0.6198638]
[1727808310386,0.14257453,62149.0,62148.0,0.6298638]
[1727808310639,0.14457453,62149.0,62148.0,0.6298638]
[1727808310851,0.14457453,62149.0,62148.0,0.455406]
[1727808310852,0.13957453,62149.0,62148.0,0.455406]
[1727808311067,0.005,62149.0,62148.0,0.456406]
[1727808311586,0.001642,62155.0,62154.0,0.16089]
[1727808311879,0.001642,62155.0,62148.0,0.2945]
[1727808311880,0.482691,62152.0,62144.0,0.160914]
[1727808312099,0.64126252,62155.0,62148.0,0.005]
[1727808312100,0.04905573,62149.0,62148.0,0.005]
[1727808312323,0.1574578,62149.0,62148.0,0.005]
[1727808312547,0.16466414,62149.0,62148.0,0.005]
[1727808312770,0.32556714,62149.0,62148.0,0.005]
[1727808313432,0.16091,62147.0,62141.0,0.0004]
[1727808313650,0.160911,62146.0,62141.0,0.0004]
[1727808313863,0.00715606,62146.0,62141.0,0.0004]
[1727808314796,0.24772573,62146.0,62141.0,0.0004]
[1727808315022,0.00715606,62146.0,62141.0,0.0004]
[1727808315694,0.00715606,62146.0,62141.0,0.161323]
[1727808315929,0.00815856,62146.0,62145.0,0.0176997]
[1727808316581,0.16906956,62146.0,62145.0,0.0176997]
[1727808316798,0.00815856,62146.0,62145.0,0.0176997]
[1727808317004,0.00815856,62146.0,62141.0,0.0413827]
[1727808317213,0.00815856,62146.0,62141.0,0.160923]
[1727808317638,0.00815856,62146.0,62140.0,0.0001]
[1727808317639,0.00815856,62146.0,62140.0,0.321949]
[1727808318137,0.00715856,62146.0,62142.0,0.160921]
[1727808318552,0.00715856,62146.0,62140.0,0.321949]
[1727808318553,0.00715856,62146.0,62141.0,0.321848]
[1727808318770,0.00815856,62146.0,62141.0,0.321848]
[1727808318987,0.00815856,62146.0,62141.0,0.162922]
[1727808319234,0.00815856,62146.0,62142.0,0.160921]
[1727808319505,0.160921,62142.0,62141.0,0.002]
[1727808319717,0.3173788,62142.0,62141.0,0.002]
[1727808319934,0.160924,62141.0,62140.0,0.0001]
[1727808320166,0.3173818,62141.0,62140.0,0.0001]
[1727808320379,0.32448536,62141.0,62140.0,0.0001]
[1727808320592,0.16356136,62141.0,62140.0,0.0001]
[1727808321283,0.16356136,62141.0,62140.0,0.0041]
[1727808321727,0.00710356,62141.0,62140.0,0.161026]
[1727808321941,0.001,62142.0,62141.0,0.160924]
[1727808322154,0.40147867,62147.0,62142.0,0.16092]
[1727808322360,0.55793647,62147.0,62142.0,0.16092]
[1727808322784,0.3173668,62147.0,62141.0,0.321848]
[1727808323016,0.3173668,62147.0,62143.0,0.160918]
[1727808323017,0.00711382,62146.0,62143.0,0.160918]
[1727808323237,0.16802582,62146.0,62141.0,0.48277]
[1727808323490,0.00711382,62146.0,62143.0,0.160918]
[1727808323737,0.3203668,62147.0,62143.0,0.160918]
[1727808324202,0.3203668,62147.0,62141.0,0.160923]
[1727808324203,0.160915,62145.0,62141.0,0.160923]
[1727808324420,0.005,62146.0,62141.0,0.001]
[1727808324670,0.005,62146.0,62141.0,0.322844]
[1727808324877,0.3173668,62147.0,62142.0,0.321842]
[1727808325108,0.160912,62146.0,62143.0,0.001]
[1727808325329,0.3233658,62147.0,62143.0,0.001]
[1727808325552,0.3233658,62147.0,62144.0,0.160915]
[1727808325767,0.3233658,62147.0,62143.0,0.001]
[1727808325768,0.002,62146.0,62143.0,0.001]
[1727808326002,0.3233658,62147.0,62143.0,0.001]
[1727808326212,0.002,62146.0,62143.0,0.001]
[1727808326426,0.002,62146.0,62141.0,0.160923]
[1727808326647,0.005,62146.0,62141.0,0.161923]
[1727808327136,0.3173658,62147.0,62141.0,0.160923]
[1727808327586,0.005,62146.0,62143.0,0.001]
[1727808327798,0.165912,62146.0,62143.0,0.001]
[1727808328041,0.003,62147.0,62140.0,0.000921]
[1727808328261,0.04805573,62153.0,62145.0,0.22234154]
[1727808328503,0.24056967,62146.0,62145.0,0.160913]
[1727808328730,0.009,62147.0,62146.0,0.160911]
[1727808329162,0.012,62147.0,62146.0,0.160911]
[1727808329633,0.006,62147.0,62146.0,0.160911]
[1727808330082,0.02521824,62154.0,62152.0,0.160895]
[1727808330315,0.02521824,62154.0,62151.0,0.160896]
[1727808330527,0.02521824,62154.0,62152.0,0.160895]
[1727808330528,0.07323773,62154.0,62152.0,0.160895]
[1727808330758,0.02521824,62154.0,62152.0,0.160895]
[1727808330963,0.02521824,62154.0,62150.0,0.321799]
[1727808331204,0.02521824,62154.0,62153.0,0.160893]
[1727808331436,0.0070502,62154.0,62153.0,0.160893]
[1727808331677,0.002,62154.0,62153.0,0.243393]
[1727808331920,0.00905021,62154.0,62153.0,0.243393]
[1727808332167,0.001642,62155.0,62154.0,0.16089]
[1727808332452,0.001642,62155.0,62154.0,0.16410761]
[1727808332731,0.001642,62155.0,62154.0,0.16089]
[1727808332975,0.001642,62155.0,62154.0,0.25289]
[1727808334245,0.001642,62155.0,62154.0,0.25389]
[1727808334535,0.003642,62155.0,62154.0,0.16189]
[1727808334740,0.001642,62155.0,62154.0,0.16089]
[1727808335003,0.001642,62155.0,62154.0,0.002]
[1727808335004,0.1580998,62155.0,62154.0,0.002]
[1727808335272,0.002642,62155.0,62154.0,0.16089]
[1727808335514,0.00975391,62155.0,62154.0,0.16489]
[1727808335771,0.002642,62155.0,62154.0,0.16489]
[1727808336536,0.3189878,62155.0,62154.0,0.004]
[1727808336780,0.84966036,62155.0,62154.0,0.005]
[1727808337040,1.18240111,62155.0,62154.0,0.005]
[1727808337279,1.08636212,62155.0,62154.0,0.005]
[1727808337780,0.160921,62142.0,62141.0,0.000821]
[1727808338030,0.61182292,62142.0,62141.0,0.000821]
[1727808338302,0.78516388,62142.0,62141.0,0.000821]
[1727808338555,0.90533484,62142.0,62141.0,0.000821]
[1727808338793,0.93055627,62142.0,62141.0,0.000821]
[1727808339034,0.81038531,62142.0,62141.0,0.000821]
[1727808339274,0.81017943,62142.0,62141.0,0.000821]
[1727808339759,0.81017943,62142.0,62141.0,0.004821]
[1727808340013,0.784958,62142.0,62141.0,0.004821]
[1727808340494,0.93983538,62142.0,62141.0,0.004821]
[1727808340735,0.6657142,62142.0,62141.0,0.001821]
[1727808341220,0.69476029,62142.0,62141.0,0.001821]
[1727808342219,0.57461646,62142.0,62141.0,0.001821]
[1727808342523,0.57461646,62142.0,62141.0,0.162745]
[1727808342524,0.01915893,62142.0,62141.0,0.162745]
[1727808343061,0.012,62142.0,62141.0,0.1659632]
[1727808343305,0.012,62142.0,62141.0,0.2796632]
[1727808343783,0.012,62142.0,62141.0,0.276445]
[1727808344026,0.24056967,62149.0,62141.0,0.276445]
[1727808344027,0.24056967,62149.0,62148.0,0.160906]
[1727808344520,0.24876957,62149.0,62148.0,0.160906]
[1727808344755,0.40522737,62149.0,62145.0,0.160911]
[1727808345032,0.40522737,62149.0,62140.0,0.322773]
[1727808345033,0.24056967,62148.0,62141.0,0.005821]
[1727808345306,0.5307685,62146.0,62141.0,0.162743]
[1727808345542,0.160921,62142.0,62141.0,0.001821]
[1727808346090,0.32559828,62142.0,62141.0,0.001821]
[1727808346319,0.48204506,62142.0,62141.0,0.000821]
[1727808346578,0.53107756,62142.0,62141.0,0.008821]
[1727808347020,0.53007756,62142.0,62141.0,0.000821]
[1727808347267,0.37363078,62142.0,62141.0,0.000821]
[1727808347524,0.37963078,62142.0,62141.0,0.001821]
[1727808347806,0.33459828,62142.0,62141.0,0.001821]
[1727808348041,0.37659306,62142.0,62141.0,0.000821]
[1727808348275,0.40064996,62142.0,62141.0,0.000821]
[1727808349000,0.88265733,62142.0,62141.0,0.000821]
[1727808349262,0.88265733,62142.0,62140.0,0.000921]
[1727808349263,0.160924,62141.0,62140.0,0.00064483]
[1727808349508,0.93847004,62141.0,62140.0,0.00064483]
[1727808349764,0.94657789,62141.0,62140.0,0.00064483]
[1727808350043,1.10302467,62141.0,62140.0,0.00064483]
[1727808350317,1.10302467,62141.0,62137.0,0.00082]
[1727808350318,0.165932,62138.0,62137.0,0.00082]
[1727808350566,0.93440181,62138.0,62137.0,0.00082]
[1727808350797,1.09612224,62138.0,62137.0,0.00082]
[1727808351051,1.43237421,62138.0,62137.0,0.00082]
[1727808351330,1.43237421,62138.0,62131.0,0.00082]
[1727808351331,0.162947,62132.0,62131.0,0.00082]
[1727808351569,0.64174634,62132.0,62131.0,0.00082]
[1727808351830,0.99889393,62132.0,62131.0,0.00082]
[1727808352081,1.15534071,62132.0,62131.0,0.00082]
[1727808352315,1.29903699,62132.0,62131.0,0.00082]
[1727808352565,1.15534071,62132.0,62131.0,0.00082]
[1727808353037,1.32426717,62132.0,62131.0,0.00082]
[1727808353540,1.19457089,62132.0,62131.0,0.00082]
[1727808353786,1.20857089,62132.0,62131.0,0.00082]
[1727808354043,1.19457089,62132.0,62131.0,0.00082]
[1727808354287,1.20857089,62132.0,62131.0,0.00082]
[1727808354718,1.20657089,62132.0,62131.0,0.00082]
[1727808355349,1.20857089,62132.0,62131.0,0.00082]
[1727808355553,1.19457089,62132.0,62131.0,0.00082]
[1727808355758,1.20857089,62132.0,62131.0,0.00082]
[1727808355963,1.19457089,62132.0,62131.0,0.00082]
[1727808356633,1.20857089,62132.0,62131.0,0.00082]
[1727808356842,1.20657089,62132.0,62131.0,0.00082]
[1727808357055,1.21803994,62132.0,62131.0,0.00082]
[1727808357697,1.19003994,62132.0,62131.0,0.00082]
[1727808358126,1.20393976,62132.0,62131.0,0.00082]
[1727808358341,1.32360484,62132.0,62131.0,0.00082]
[1727808358539,1.30960484,62132.0,62131.0,0.00082]
[1727808358968,1.32360484,62132.0,62131.0,0.00082]
[1727808359180,1.32360484,62132.0,62121.0,0.0004]
[1727808359181,0.160973,62122.0,62121.0,0.0004]
[1727808359396,0.3174308,62122.0,62121.0,0.0004]
[1727808359619,0.32573156,62122.0,62121.0,0.0004]
[1727808360702,0.33873156,62122.0,62121.0,0.0004]
[1727808361178,0.35273156,62122.0,62121.0,0.0004]
[1727808361395,0.59330123,62122.0,62121.0,0.0004]
[1727808361628,0.19175856,62122.0,62121.0,0.0004]
[1727808362051,0.19175856,62122.0,62121.0,0.161376]
[1727808362282,0.19175856,62122.0,62121.0,0.0004]
[1727808362554,0.19175856,62122.0,62121.0,0.161376]
[1727808362748,0.17775856,62122.0,62121.0,0.161376]
[1727808362958,0.16475856,62122.0,62121.0,0.161376]
[1727808363213,0.17875856,62122.0,62121.0,0.161376]
[1727808363412,0.03530076,62122.0,62121.0,0.161376]
[1727808363628,0.02522891,62126.0,62121.0,0.161376]
[1727808363844,0.24056967,62134.0,62133.0,0.160945]
[1727808364266,0.24883054,62134.0,62133.0,0.160945]
[1727808364474,0.00826087,62134.0,62133.0,0.160945]
[1727808364914,0.24056967,62141.0,62136.0,0.321871]
[1727808365153,0.1564578,62140.0,62138.0,0.160931]
[1727808365356,0.1564578,62140.0,62137.0,0.160934]
[1727808365357,0.16475119,62140.0,62137.0,0.160934]
[1727808365774,0.160939,62136.0,62133.0,0.0769]
[1727808365987,0.1564578,62136.0,62133.0,0.0769]
[1727808366196,0.0087866,62135.0,62133.0,0.0769]
[1727808366640,0.004,62134.0,62133.0,0.0769]
[1727808366851,0.164942,62134.0,62133.0,0.0769]
[1727808367052,0.0087891,62134.0,62133.0,0.0769]
[1727808367883,0.160941,62135.0,62133.0,0.0769]
[1727808368096,0.160946,62133.0,62129.0,0.160953]
[1727808368315,0.49040159,62132.0,62119.0,0.0821]
[1727808368543,0.160964,62126.0,62119.0,0.404059]
[1727808368750,0.34713603,62130.0,62122.0,0.321946]
[1727808368993,0.3174148,62129.0,62124.0,0.160968]
[1727808369199,0.3174148,62129.0,62121.0,0.161375]
[1727808369200,0.160964,62126.0,62121.0,0.161375]
[1727808369416,0.160973,62122.0,62121.0,0.0004]
[1727808369626,0.16520145,62125.0,62121.0,0.0004]
[1727808369845,0.00874615,62122.0,62121.0,0.0004]
[1727808370063,0.160973,62122.0,62121.0,0.0004]
[1727808370338,0.78030649,62122.0,62121.0,0.0004]
[1727808370544,0.78030649,62122.0,62121.0,0.001221]
[1727808371370,0.78430649,62122.0,62121.0,0.001221]
[1727808372679,0.78030649,62122.0,62121.0,0.001221]
[1727808373135,0.80630649,62122.0,62121.0,0.001221]
[1727808373555,0.47159418,62122.0,62121.0,0.001221]
[1727808373764,0.58807125,62122.0,62121.0,0.001221]
[1727808373968,0.60207125,62122.0,62121.0,0.001221]
[1727808380349,0.64983707,62122.0,62121.0,0.001221]
[1727808381265,0.64983707,62122.0,62118.0,0.000821]
[1727808381266,0.160981,62119.0,62118.0,0.000821]
[1727808381499,1.79097273,62119.0,62118.0,0.000821]
[1727808381717,1.9310438,62119.0,62118.0,0.000821]
[1727808382424,1.70287173,62119.0,62118.0,0.000821]
[1727808382647,1.71687173,62119.0,62118.0,0.000821]
[1727808382865,1.61687173,62119.0,62118.0,0.000821]
[1727808383091,1.68858866,62119.0,62118.0,0.000821]
[1727808383303,1.70058866,62119.0,62118.0,0.000821]
[1727808383520,1.78531851,62119.0,62118.0,0.000821]
[1727808383733,0.160998,62113.0,62108.0,0.161008]
[1727808383920,0.161003,62111.0,62106.0,0.161015]
[1727808384191,0.161005,62110.0,62105.0,0.244116]
[1727808384411,0.4784628,62111.0,62105.0,0.0831]
[1727808384640,0.00753043,62110.0,62105.0,0.0831]
[1727808384864,0.16853543,62110.0,62106.0,0.161013]
[1727808385083,0.03276382,62110.0,62106.0,0.161013]
[1727808385315,0.03276382,62110.0,62105.0,0.0831]
[1727808385530,0.161014,62107.0,62105.0,0.0831]
[1727808385766,0.35477382,62110.0,62105.0,0.0831]
[1727808386008,0.161007,62109.0,62105.0,0.244116]
[1727808386440,0.00752115,62108.0,62105.0,0.244116]
[1727808386893,0.00752115,62108.0,62107.0,0.161012]
[1727808387149,0.00752115,62108.0,62105.0,0.405134]
[1727808387374,0.002,62109.0,62105.0,0.405134]
[1727808387596,0.00752365,62108.0,62107.0,0.161012]
[1727808387837,0.01152365,62108.0,62107.0,0.161012]
[1727808388061,0.01152365,62108.0,62105.0,0.405134]
[1727808388318,0.01152365,62108.0,62106.0,0.161014]
[1727808388546,0.01152365,62108.0,62105.0,0.0831]
[1727808388547,0.01152365,62108.0,62105.0,0.244117]
[1727808388768,0.01152365,62108.0,62106.0,0.161015]
[1727808388982,0.01252365,62108.0,62106.0,0.161015]
[1727808389190,0.00752365,62108.0,62106.0,0.161015]
[1727808389406,0.18623739,62110.0,62106.0,0.161015]
[1727808389627,0.005,62109.0,62107.0,0.161012]
[1727808389842,0.005,62109.0,62105.0,0.244116]
[1727808390056,0.001,62108.0,62105.0,0.244116]
[1727808390280,0.006,62108.0,62106.0,0.161014]
[1727808390494,0.005,62108.0,62106.0,0.161014]
[1727808390706,0.005,62108.0,62105.0,0.40513]
[1727808390913,0.02923339,62110.0,62107.0,0.161011]
[1727808391131,0.006,62109.0,62107.0,0.161011]
[1727808392213,0.006,62109.0,62108.0,0.161009]
[1727808392426,0.02523339,62110.0,62109.0,0.161007]
[1727808392877,0.02523339,62110.0,62106.0,0.322029]
[1727808393094,0.02523339,62110.0,62109.0,0.161007]
[1727808393322,0.02523339,62110.0,62106.0,0.322029]
[1727808393559,0.006,62109.0,62107.0,0.161009]
[1727808393766,0.006,62109.0,62108.0,0.161009]
[1727808393988,0.02923339,62110.0,62108.0,0.161009]
[1727808394230,0.17392808,62110.0,62109.0,0.161007]
[1727808394448,0.07716717,62110.0,62109.0,0.161007]
[1727808394929,0.08416717,62110.0,62108.0,0.161009]
[1727808395152,0.03623339,62110.0,62108.0,0.161009]
[1727808395375,0.03623339,62110.0,62105.0,0.0831]
[1727808395617,0.03623339,62110.0,62109.0,0.161007]
[1727808395844,0.03223339,62110.0,62109.0,0.161007]
[1727808396294,0.007,62110.0,62109.0,0.161007]
[1727808396784,0.007,62110.0,62109.0,0.457907]
[1727808396785,0.011,62110.0,62109.0,0.457907]
[1727808397043,0.33652123,62127.0,62126.0,0.160963]
[1727808397044,0.24056967,62127.0,62126.0,0.160963]
[1727808397271,0.24056967,62127.0,62126.0,0.48302582]
[1727808397723,0.24056967,62141.0,62130.0,0.183952]
[1727808397950,0.24056967,62141.0,62130.0,0.40661482]
[1727808398169,0.00960061,62131.0,62130.0,0.40661482]
[1727808398393,0.001642,62131.0,62130.0,0.48531482]
[1727808398606,0.001642,62131.0,62130.0,0.48331482]
[1727808399038,0.001642,62131.0,62130.0,0.74177262]
[1727808399280,0.24056967,62141.0,62130.0,0.74177262]
[1727808399281,0.24056967,62141.0,62140.0,0.160926]
[1727808399500,0.24056967,62141.0,62140.0,0.38358882]
[1727808399727,0.24872547,62141.0,62140.0,0.38358882]
[1727808399969,0.24056967,62141.0,62140.0,0.38358882]
[1727808400194,0.001642,62142.0,62141.0,0.183924]
[1727808400611,0.001642,62142.0,62141.0,0.185924]
[1727808400827,0.001642,62142.0,62141.0,0.44341274]
[1727808401108,0.001642,62142.0,62141.0,0.4473818]
[1727808401327,0.001642,62142.0,62140.0,0.73081582]
[1727808401328,0.160924,62141.0,62140.0,0.002]
[1727808401538,0.3173818,62141.0,62140.0,0.002]
[1727808401752,0.32605337,62141.0,62140.0,0.005]
[1727808402424,0.32605337,62141.0,62140.0,0.003]
[1727808402671,0.160943,62134.0,62129.0,0.160954]
[1727808403117,0.00921128,62133.0,62129.0,0.160954]
[1727808403581,0.00921128,62133.0,62132.0,0.160947]
[1727808403832,0.00921128,62133.0,62130.0,0.16095]
[1727808404074,0.004,62134.0,62130.0,0.16095]
[1727808404311,0.00920879,62132.0,62130.0,0.16095]
[1727808404546,0.00920879,62132.0,62123.0,0.397338]
[1727808404804,0.00920879,62132.0,62123.0,0.0754]
[1727808405026,0.00920879,62132.0,62129.0,0.160954]
[1727808405247,0.00920879,62132.0,62126.0,0.321924]
[1727808405459,0.00920879,62132.0,62130.0,0.160951]
[1727808405683,0.00920879,62132.0,62131.0,0.16095]
[1727808406123,0.40150167,62138.0,62133.0,0.160943]
[1727808406345,0.40150167,62138.0,62134.0,0.160942]
[1727808406568,0.00922463,62137.0,62134.0,0.160942]
[1727808406818,0.17016063,62137.0,62130.0,0.321904]
[1727808407033,0.001,62132.0,62131.0,0.16095]
[1727808407250,0.00922463,62137.0,62132.0,0.321895]
[1727808407553,0.167932,62138.0,62134.0,0.160942]
[1727808407793,0.167932,62138.0,62130.0,0.321904]
[1727808407794,0.00915722,62136.0,62130.0,0.321904]
[1727808408010,0.160936,62137.0,62132.0,0.160946]
[1727808408235,0.160938,62136.0,62131.0,0.160949]
[1727808408506,0.160938,62136.0,62123.0,0.0754]
[1727808408507,0.00915722,62136.0,62125.0,0.321929]
[1727808408764,0.00915722,62136.0,62128.0,0.160956]
[1727808408765,0.160948,62132.0,62128.0,0.160956]
[1727808409014,0.160953,62130.0,62126.0,0.160961]
[1727808409250,0.160953,62130.0,62124.0,0.321934]
[1727808409498,0.321893,62133.0,62124.0,0.321934]
[1727808409499,0.00915722,62129.0,62124.0,0.321934]
[1727808409755,0.00915722,62129.0,62125.0,0.160965]
[1727808409756,0.17011222,62129.0,62125.0,0.160965]
[1727808410039,0.160952,62131.0,62128.0,0.001]
[1727808410279,0.160955,62129.0,62128.0,0.001]
[1727808410548,0.160956,62129.0,62123.0,0.236369]
[1727808410778,0.160959,62128.0,62124.0,0.160967]
[1727808411036,0.321924,62127.0,62123.0,0.0754]
[1727808411282,0.321906,62130.0,62120.0,0.321957]
[1727808411546,0.24056967,62127.0,62117.0,0.0775]
[1727808411820,0.33369712,62120.0,62109.0,0.0775]
[1727808412072,0.160995,62114.0,62110.0,0.161003]
[1727808412796,0.18622638,62114.0,62107.0,0.322023]
[1727808413065,0.161,62112.0,62107.0,0.322023]
[1727808413322,0.1564578,62111.0,62107.0,0.16101]
[1727808413558,0.161006,62110.0,62106.0,0.161834]
[1727808413798,0.16581315,62111.0,62108.0,0.161009]
[1727808414039,0.009299,62109.0,62108.0,0.161009]
[1727808414261,0.3174598,62111.0,62106.0,0.322849]
[1727808414527,0.00930149,62109.0,62108.0,0.161009]
[1727808414770,0.009299,62110.0,62108.0,0.161009]
[1727808415017,0.00930149,62109.0,62106.0,0.161835]
[1727808415262,0.009299,62109.0,62107.0,0.161012]
[1727808415510,0.009299,62109.0,62106.0,0.000821]
[1727808415740,0.03453165,62109.0,62108.0,0.161009]
[1727808415965,0.02523265,62109.0,62108.0,0.161009]
[1727808416242,0.02523265,62109.0,62106.0,0.322851]
[1727808416243,0.03453414,62109.0,62106.0,0.483863]
[1727808416487,0.03453414,62109.0,62107.0,0.161011]
[1727808417700,0.03953414,62109.0,62107.0,0.161011]
[1727808418179,0.03953414,62109.0,62106.0,0.000821]
[1727808418180,0.333512,62107.0,62106.0,0.000821]
[1727808418443,0.161051,62092.0,62091.0,0.000821]
[1727808418694,0.65120592,62092.0,62091.0,0.000821]
[1727808418939,0.66044498,62092.0,62091.0,0.000821]
[1727808419189,0.68568829,62092.0,62091.0,0.000821]
[1727808419675,0.73360639,62092.0,62091.0,0.000821]
[1727808419896,0.74360639,62092.0,62091.0,0.000821]
[1727808420094,0.75560639,62092.0,62091.0,0.000821]
[1727808420370,0.42190927,62092.0,62091.0,0.000821]
[1727808420865,0.39666596,62092.0,62091.0,0.000821]
[1727808421101,0.23561496,62092.0,62091.0,0.000821]
[1727808421354,0.34874786,62092.0,62091.0,0.000821]
[1727808421807,0.18769686,62092.0,62091.0,0.000821]
[1727808422044,0.34874786,62092.0,62091.0,0.000821]
[1727808422233,0.18769686,62092.0,62091.0,0.000821]
[1727808422515,0.34874786,62092.0,62091.0,0.000821]
[1727808422975,0.47162238,62092.0,62091.0,0.000821]
[1727808423429,0.57162238,62092.0,62091.0,0.000821]
[1727808423908,0.59686638,62092.0,62091.0,0.000821]
[1727808425086,0.161066,62086.0,62085.0,0.000821]
[1727808425294,0.3175238,62086.0,62085.0,0.000821]
[1727808425516,0.3248279,62086.0,62085.0,0.000821]
[1727808426448,0.4308279,62086.0,62085.0,0.000821]
[1727808426664,0.59127468,62086.0,62085.0,0.000821]
[1727808426878,0.61652122,62086.0,62085.0,0.000821]
[1727808427102,0.61852122,62086.0,62085.0,0.000821]
[1727808427343,0.62692662,62086.0,62085.0,0.000821]
[1727808427582,0.62092662,62086.0,62085.0,0.000821]
[1727808427818,0.61892662,62086.0,62085.0,0.000821]
[1727808428473,0.47647984,62086.0,62085.0,0.000821]
[1727808428696,0.19570434,62086.0,62085.0,0.000821]
[1727808428946,0.18631254,62086.0,62085.0,0.000821]
[1727808429151,0.03924654,62086.0,62085.0,0.000821]
[1727808429373,0.05324654,62086.0,62085.0,0.000821]
[1727808429580,0.014,62086.0,62085.0,0.16189]
[1727808430029,0.028,62086.0,62085.0,0.16189]
[1727808430301,0.014,62086.0,62085.0,0.000821]
[1727808430547,0.018,62086.0,62085.0,0.16189]
[1727808430760,0.004,62086.0,62085.0,0.16189]
[1727808430967,0.013,62086.0,62085.0,0.24189]
[1727808431413,0.24056967,62095.0,62085.0,0.080821]
[1727808431680,0.39702747,62095.0,62088.0,0.161061]
[1727808431887,0.24056967,62095.0,62093.0,0.161046]
[1727808432112,0.24056967,62095.0,62090.0,0.161055]
[1727808432375,0.161036,62098.0,62093.0,0.161047]
[1727808432633,0.322031,62106.0,62091.0,0.322107]
[1727808432848,0.161026,62102.0,62097.0,0.161037]
[1727808433065,0.1564578,62102.0,62099.0,0.161033]
[1727808433280,0.1564578,62102.0,62097.0,0.161036]
[1727808433507,0.1564578,62102.0,62098.0,0.161034]
[1727808433738,0.02523892,62107.0,62094.0,0.33369712]
[1727808434008,0.02523892,62107.0,62089.0,0.33369712]
[1727808434009,0.001642,62100.0,62089.0,0.33369712]
[1727808434220,0.001642,62100.0,62099.0,0.161033]
[1727808434448,0.323704,62100.0,62090.0,0.32211]
[1727808434677,0.323704,62100.0,62094.0,0.161046]
[1727808434678,0.01,62095.0,62094.0,0.161046]
[1727808435150,0.16104,62097.0,62092.0,0.322102]
[1727808435388,0.161035,62099.0,62092.0,0.3221]
[1727808435626,0.27932736,62100.0,62096.0,0.161039]
[1727808435871,0.161036,62098.0,62094.0,0.161045]
[1727808436080,0.50997332,62100.0,62095.0,0.161042]
[1727808436318,0.02988032,62100.0,62092.0,0.3221]
[1727808436548,0.02688032,62100.0,62088.0,0.000821]
[1727808436979,0.03388032,62100.0,62099.0,0.161033]
[1727808437451,0.04088032,62100.0,62099.0,0.161033]
[1727808437664,0.03388032,62100.0,62099.0,0.161033]
[1727808438187,0.04088032,62100.0,62099.0,0.161033]
[1727808438870,0.04988032,62100.0,62099.0,0.161033]
[1727808439430,0.03588032,62100.0,62099.0,0.161033]
[1727808439582,0.04288032,62100.0,62099.0,0.161033]
[1727808440010,0.04288032,62100.0,62091.0,0.01273732]
[1727808440011,0.04288032,62100.0,62091.0,0.322104]
[1727808440227,0.04288032,62100.0,62088.0,0.000821]
[1727808440439,0.322068,62099.0,62093.0,0.161048]
[1727808440678,0.24056967,62097.0,62092.0,0.161051]
[1727808440933,0.3174948,62098.0,62093.0,0.161046]
[1727808441145,0.24056967,62097.0,62088.0,0.000821]
[1727808441362,0.33369712,62094.0,62088.0,0.000821]
[1727808441582,0.161059,62089.0,62088.0,0.000821]
[1727808441824,0.3175168,62089.0,62088.0,0.000821]
[1727808442272,0.89178359,62089.0,62088.0,0.000821]
[1727808442490,0.8076607,62089.0,62088.0,0.000821]
[1727808443349,0.8126607,62089.0,62088.0,0.000821]
[1727808443556,0.47696358,62089.0,62088.0,0.000821]
[1727808443768,0.3205168,62089.0,62088.0,0.000821]
[1727808443979,0.3245168,62089.0,62088.0,0.000821]
[1727808444408,0.3295168,62089.0,62088.0,0.000821]
[1727808445023,0.3265168,62089.0,62088.0,0.000821]
[1727808445456,0.3325168,62089.0,62088.0,0.000821]
[1727808445683,2.03531134,62089.0,62088.0,0.000821]
[1727808445901,2.46958101,62089.0,62088.0,0.000821]
[1727808446123,0.161066,62086.0,62085.0,0.000821]
[1727808446351,0.3175238,62086.0,62085.0,0.000821]
[1727808446566,0.57397058,62086.0,62085.0,0.000821]
[1727808447086,0.261069,62085.0,62084.0,0.01459151]
[1727808447288,0.4175268,62085.0,62084.0,0.01459151]
[1727808449342,0.4335268,62085.0,62084.0,0.01459151]